[Event "Baku Open 2024"]
[Site "Baku"]
[Date "2024.07.01"]
[Round "3.22"]
[White "Ajay Santhosh Parvathareddy"]
[Black "Soham Kamotra"]
[Result "1/2-1/2"]
[ECO "E15"]
[WhiteElo "2163"]
[BlackElo "2388"]
[Annotator "RC"]
[PlyCount "108"]
[EventDate "2024.06.29"]
[EventType "swiss"]
[EventCountry "AZE"]
[SourceTitle "playchess.com"]
[Source "ChessBase"]
[SourceQuality "1"]
[TimeControl "5400+30"]

1. d4 {[%emt 0:00:01]} Nf6 {[%emt 0:00:09]} 2. c4 {[%emt 0:00:05]} e6 {[%emt 0:00:09]} 3. Nf3 {[%emt 0:00:03]} b6 {[%emt 0:00:05]} 4. g3 {[%emt 0:00:02]} Ba6 {[%emt 0:00:04]} 5. b3 {[%emt 0:00:05]} Bb4+ {[%emt 0:00:50]} 6. Bd2 {[%emt 0:00:05]} Be7 {[%emt 0:00:07]} 7. Nc3 {[%emt 0:00:04]} d5 {[%emt 0:00:20]} 8. cxd5 {[%emt 0:00:32]} exd5 {[%emt 0:00:08]} 9. Bg2 {[%emt 0:00:05]} O-O {[%emt 0:00:11]} 10. O-O {[%emt 0:00:05]} Re8 {[%emt 0:02:27]} 11. Ne5 {[%emt 0:02:57]} Bb7 {[%emt 0:04:01]} 12. Rc1 {[%emt 0:05:43]} Nbd7 {[%emt 0:09:13]} 13. Bf4 {[%emt 0:10:35]} Nf8 {[%emt 0:01:10]} 14. Nb5 {[%emt 0:09:04]} c5 {[%emt 0:14:13]} 15. dxc5 {[%emt 0:01:08]} bxc5 {[%emt 0:02:45]} 16. Nc4 {[%emt 0:00:05]} Ng6 {[%emt 0:08:11]} 17. Bd6 {[%emt 0:22:37]} Bc6 {[%emt 0:26:38]} 18. Bxe7 {[%emt 0:08:37]} Nxe7 {[%emt 0:07:53]} 19. Ncd6 {[%emt 0:02:40]} Rf8 {[%emt 0:01:58]} 20. e4 {[%emt 0:05:47]} a6 {[%emt 0:02:30]} 21. exd5 {[%emt 0:00:17]} Nfxd5 {[%emt 0:04:46]} 22. Rxc5 {[%emt 0:03:18]} Qb6 {[%emt 0:05:56]} 23. Qc1 {[%emt 0:02:23]} axb5 {[%emt 0:00:03]} 24. Nf5 {[%emt 0:00:11]} Nxf5 {[%emt 0:05:24]} 25. Rxc6 {[%emt 0:00:07]} Qa5 {[%emt 0:00:35]} 26. Bxd5 {[%emt 0:01:07]} Nd4 {[%emt 0:00:02]} 27. Qe1 {[%emt 0:09:48]} Nxc6 {[%emt 0:01:07]} 28. Bxc6 {[%emt 0:00:06]} Qxe1 {[%emt 0:00:55]} 29. Rxe1 {[%emt 0:00:04]} Rxa2 {[%emt 0:00:03]} 30. Bxb5 {[%emt 0:00:06]} Rb8 {[%emt 0:00:58]} 31. Bc4 {[%emt 0:00:13]} Kf8 {[%emt 0:00:05]} 32. Rd1 {[%emt 0:00:11]} Ke7 {[%emt 0:00:30]} 33. Re1+ {[%emt 0:00:05]} Kf8 {[%emt 0:00:03]} 34. Rd1 {[%emt 0:00:09]} Ke7 {[%emt 0:00:01]} 35. Re1+ {[%emt 0:00:56]} Kf6 {[%emt 0:00:05]} 36. Re4 {[%emt 0:00:26]} g5 {[%emt 0:01:08]} 37. h4 {[%emt 0:00:22]} h6 {[%emt 0:00:05]} 38. hxg5+ {[%emt 0:00:40]} hxg5 {[%emt 0:00:02]} 39. Rd4 {[%emt 0:00:14]} Re8 {[%emt 0:00:35]} 40. Rd6+ {[%emt 0:00:16]} Ke7 {[%emt 0:00:37]} 41. Rb6 {[%emt 0:00:50]} Ra7 {[%emt 0:00:10]} 42. Kg2 {[%emt 0:00:34]} Rd8 {[%emt 0:00:05]} 43. Kh3 {[%emt 0:00:58]} Rd4 {[%emt 0:02:35]} 44. Rh6 {[%emt 0:02:24]} Ra2 {[%emt 0:00:48]} 45. f3 {[%emt 0:01:58]} Ra1 {[%emt 0:02:09]} 46. Rb6 {[%emt 0:15:27]} f5 {[%emt 0:00:54]} 47. Re6+ {[%emt 0:00:00]} Kd7 {[%emt 0:00:13]} 48. Re5 {[%emt 0:00:00]} g4+ {[%emt 0:00:49]} 49. fxg4 {[%emt 0:00:00]} fxg4+ {[%emt 0:00:12]} 50. Kh4 {[%emt 0:00:00]} Rh1+ {[%emt 0:00:25]} 51. Kg5 {[%emt 0:00:00]} Rh3 {[%emt 0:00:24]} 52. Re3 {[%emt 0:00:00]} Kd6 {[%emt 0:00:21]} 53. Be6 {[%emt 0:00:00]} Rh8 {[%emt 0:00:40]} 54. Bc4 {[%emt 0:00:00]} Rf8 {[%emt 0:00:54]} 1/2-1/2

[Event "Baku Open 2024"]
[Site "Baku"]
[Date "2024.07.01"]
[Round "3.23"]
[White "Abasov, Nijat"]
[Black "Javadov, Habil"]
[Result "1-0"]
[ECO "C10"]
[WhiteElo "2621"]
[BlackElo "2195"]
[Annotator "TA"]
[PlyCount "41"]
[EventDate "2024.06.29"]
[EventType "swiss"]
[EventCountry "AZE"]
[SourceTitle "playchess.com"]
[Source "ChessBase"]
[SourceQuality "1"]
[TimeControl "5400+30"]

{[%evp 12,41,41,19,37,20,11,18,19,37,20,25,64,53,92,104,102,106,296,65,239,253,334,332,390,387,457,425,437,450,440,403]} 1. e4 {[%emt 0:01:43]} e6 {[%emt 0:01:55]} 2. d4 {[%emt 0:00:05]} d5 {[%emt 0:00:07]} 3. Nc3 {[%emt 0:00:06]} dxe4 {[%emt 0:00:28]} 4. Nxe4 {[%emt 0:00:11]} Nd7 {[%emt 0:00:12][%cal Bb8d7,Bd7f6,Bf6d5][%mdl 32]} 5. Nf3 {[%emt 0:00:40]} Ngf6 {[%emt 0:00:19]} 6. Nxf6+ {[%emt 0:00:45]} Nxf6 {[%emt 0:00:09]} 7. Be3 {[%emt 0:00:28]} Nd5 {[%emt 0:00:34]} 8. Bd2 {[%emt 0:00:42]} c5 {[%emt 0:03:01]} 9. Bb5+ {[%emt 0:00:44]} Bd7 {[%emt 0:00:20] The position is equal.} 10. Bxd7+ {[%emt 0:00:14]} Qxd7 {[%emt 0:00:15]} 11. c4 {[%emt 0:00:06] [#] Ne5 would now be deadly.} Nc7 {[%emt 0:07:18]} 12. O-O {[%emt 0:13:39]} Be7 {[%emt 0:13:16]} 13. dxc5 {[%emt 0:05:45] Hoping for Ne5.} Bxc5 {[%emt 0:00:57]} 14. Ne5 {[%emt 0:00:16][%cal Bf3e5,Be5d7,Bd7f8][%mdl 32]} Qd4 {[%emt 0:05:49] [#]} (14... Qd6 $16 {was worth a try.}) 15. Qe2 $2 {[%emt 0:01:27]} ({White has to play} 15. Qh5 $1 $18 {[%cal Rh5f7]} g6 16. Qe2) 15... O-O {[%emt 0:01:12]} ({Better is} 15... Qxb2 $14 16. Nd3 (16. Rab1 Qxa2 17. Qf3 O-O $14) 16... Qa3) 16. Bc3 $18 {[%emt 0:00:26]} Qd8 {[%emt 0:06:33]} 17. Rad1 {[%emt 0:01:26]} Qc8 {[%emt 0:08:28]} 18. Nd7 {[%emt 0:10:28]} Nd5 {[%emt 0:00:24] Inhibits Nf6+.} 19. Bxg7 {[%emt 0:00:11] White is clearly winning.} ({Not} 19. Nxf8 Nxc3 20. bxc3 Kxf8 $18) 19... Kxg7 {[%emt 0:01:06]} 20. Qg4+ {[%emt 0:00:06]} ({Don't play} 20. Nxf8 Nb6 21. Nxh7 Kxh7 22. Qh5+ Kg8 $18) 20... Kh8 {[%emt 0:00:16]} 21. Nxf8 {[%emt 0:00:17] Weighted Error Value: White=0.29 (precise) /Black=0.77.  Loses game:     	---       	Black=2      Missed win:     	White=1     	---        Inaccurate:     	---       	Black=3      OK:         	White=9     	Black=1      Best:        	White=2     	Black=2} 1-0

[Event "Baku Open 2024"]
[Site "Baku"]
[Date "2024.07.01"]
[Round "3.24"]
[White "Davudov, Tunar"]
[Black "Narayanan S L"]
[Result "0-1"]
[ECO "B32"]
[WhiteElo "2249"]
[BlackElo "2668"]
[Annotator "TA"]
[PlyCount "75"]
[EventDate "2024.06.29"]
[EventType "swiss"]
[EventCountry "AZE"]
[SourceTitle "playchess.com"]
[Source "ChessBase"]
[SourceQuality "1"]
[TimeControl "5400+30"]

{[%evp 13,75,16,26,15,7,8,59,68,58,62,75,71,78,77,76,79,89,79,103,49,48,37,37,37,68,0,0,-8,0,0,0,0,0,0,0,-36,-16,-29,-31,-36,-34,-33,-36,-52,-47,-56,-58,-79,-71,-75,-77,-227,-191,-287,-293,-306,-303,-313,-124,-140,-144,-297,-288,-544]} 1. e4 {[%emt 0:00:04]} c5 {[%emt 0:00:12]} 2. Nf3 {[%emt 0:00:07]} Nc6 {[%emt 0:00:07]} 3. d4 {[%emt 0:00:20]} cxd4 {[%emt 0:00:07]} 4. Nxd4 {[%emt 0:00:05]} e5 {[%emt 0:00:14]} 5. Nb5 {[%emt 0:01:10]} d6 {[%emt 0:00:07]} 6. N1c3 {[%emt 0:02:06]} a6 {[%emt 0:00:44]} 7. Na3 {[%emt 0:01:56]} Be6 {[%emt 0:00:30]} 8. Be3 {[%emt 0:00:30]} Rb8 {[%emt 0:08:09]} 9. Nd5 {[%emt 0:05:43]} b5 {[%emt 0:00:29]} ({Black should play} 9... Bxd5 $11 10. exd5 (10. Qxd5 Nf6 $11) 10... Nce7) 10. c4 $14 {[%emt 0:01:31] White is slightly better.} b4 {[%emt 0:01:05]} 11. Nc2 {[%emt 0:04:03]} a5 {[%emt 0:00:30]} 12. Be2 {[%emt 0:00:30]} Nf6 {[%emt 0:00:45][%cal Bg8f6,Bf6d7,Bd7c5][%mdl 32]} 13. f3 {[%emt 0:02:38]} Be7 {[%emt 1:24:01]} 14. O-O {[%emt 0:01:34]} Nd7 {[%emt 0:00:00]} 15. Qd2 $1 {[%emt 0:12:05]} Nc5 {[%emt 0:00:00] [#]} 16. b3 {[%emt 0:03:34]} (16. Rad1 $1 $16) 16... Rb7 {[%emt 0:00:00]} 17. Rfd1 {[%emt 0:17:09] Threatens to win with Nxe7.} Rd7 {[%emt 0:00:00]} 18. Rab1 {[%emt 0:01:09]} O-O {[%emt 0:00:00]} 19. g4 {[%emt 0:02:01]} (19. a3 $1 $14) 19... h6 {[%emt 0:00:00]} 20. a3 {[%emt 0:06:14]} Bg5 {[%emt 0:00:00]} 21. axb4 {[%emt 0:09:45]} axb4 {[%emt 0:00:00]} 22. Ndxb4 {[%emt 0:02:42]} Na5 {[%emt 0:00:00]} 23. Qc3 {[%emt 0:01:24]} Bxe3+ {[%emt 0:00:00]} 24. Qxe3 {[%emt 0:06:57]} Rb7 {[%emt 0:00:00]} 25. Nd3 {[%emt 0:03:37]} Ncxb3 {[%emt 0:00:00]} (25... Rxb3 26. Rxb3 Ncxb3 (26... Naxb3 27. Nxe5 Qc8 28. Nd3 $17) 27. Nxe5 $15) 26. Ndb4 {[%emt 0:07:50]} Nc5 {[%emt 0:00:00]} (26... Bxc4 $2 27. Bxc4 Nxc4 28. Qxb3 $18) 27. Na3 {[%emt 0:02:07]} Qb8 {[%emt 0:00:00]} 28. Nd5 {[%emt 0:00:22]} Bxd5 {[%emt 0:00:00]} 29. cxd5 {[%emt 0:01:27]} Nab3 {[%emt 0:00:00]} 30. Nc2 {[%emt 0:02:17]} Qa7 {[%emt 0:00:00]} 31. Bc4 {[%emt 0:01:42][%cal Rc4b3] Strongly threatening Bxb3.} Rfb8 {[%emt 0:00:00] ...Qa4 would now be deadly.} 32. Kh1 {[%emt 0:01:17] [#]} (32. Kg2 $17 {was called for.}) 32... Qa4 $1 $19 {[%emt 0:00:00]} 33. Qc3 {[%emt 0:00:33] [#]} (33. Qe2 $142) 33... Nd4 $1 {[%emt 0:00:00][%mdl 512] Excellent horsemanship.} 34. Rxb7 {[%emt 0:00:21]} Rxb7 {[%emt 0:00:00]} (34... Nxb7 35. Bd3 Nc5 (35... Nxf3 36. Qc7 $16) 36. Ra1) 35. Rc1 {[%emt 0:00:30]} Nb5 {[%emt 0:00:00]} (35... Nxf3 $19 {has better winning chances.} 36. Ra1 Nxe4 37. Rxa4 Nxc3) 36. Bxb5 $17 {[%emt 0:00:38]} Qxb5 {[%emt 0:00:00]} (36... Rxb5 37. Ra1 Qb3 38. Qxb3 Rxb3 39. Ra3) 37. Qe3 $2 {[%emt 0:00:31]} (37. Re1 $17) 37... Qb2 $19 {[%emt 0:00:00]} 38. Na1 $2 {[%emt 0:01:01] Prevents Rb3.   Weighted Error Value: White=0.22 (precise) /Black=0.13 (very precise) .  Missed win:     	---       	Black=1      Mistake:       	White=6     	Black=1      Inaccurate:     	White=1     	Black=1      OK:         	White=11    	Black=16     Strong:       	White=1     	Black=1      Brilliant:      	---       	Black=1} (38. Na3 Rb3 39. Nc4 Rxe3 40. Nxb2 Rxf3 41. Kg2) 0-1

[Event "Baku Open 2024"]
[Site "Baku"]
[Date "2024.07.01"]
[Round "3.25"]
[White "Iskandarov, Misratdin"]
[Black "Tregubenko, Nikolay"]
[Result "1-0"]
[ECO "B50"]
[WhiteElo "2524"]
[BlackElo "2246"]
[Annotator "TA"]
[PlyCount "45"]
[EventDate "2024.06.29"]
[EventType "swiss"]
[EventCountry "AZE"]
[SourceTitle "playchess.com"]
[Source "ChessBase"]
[SourceQuality "1"]
[TimeControl "5400+30"]

{[%evp 22,45,40,27,62,41,62,78,171,167,630,636,634,602,577,562,1481,887,2017,799,818,810,29996,29997,29997,29998]} 1. e4 {[%emt 0:00:04]} c5 {[%emt 0:00:09]} 2. Nf3 {[%emt 0:00:11]} d6 {[%emt 0:00:05]} 3. c3 {[%emt 0:00:20]} Nf6 {[%emt 0:01:42]} 4. Be2 {[%emt 0:00:08]} Nc6 {[%emt 0:05:11]} 5. d4 {[%emt 0:00:07]} cxd4 {[%emt 0:01:17]} 6. cxd4 {[%emt 0:01:32]} Nxe4 {[%emt 0:14:57]} 7. d5 {[%emt 0:00:06]} Qa5+ {[%emt 0:00:20]} 8. Nc3 {[%emt 0:00:06]} Nxc3 {[%emt 0:03:14]} 9. bxc3 {[%emt 0:00:16]} Ne5 {[%emt 0:03:47]} 10. Nxe5 {[%emt 0:00:08]} Qxc3+ {[%emt 0:03:43]} 11. Bd2 {[%emt 0:02:34]} Qxe5 {[%emt 0:01:18]} 12. O-O {[%emt 0:00:07]} Bd7 {[%emt 0:05:03][%cal Og7g6] Prevents Bb5.} 13. Rb1 {[%emt 0:03:37][%mdl 1024] White has compensation.} b6 {[%emt 0:05:06][%cal Og7g6]} 14. Re1 {[%emt 0:02:11]} Rd8 {[%emt 0:07:08] [#]} (14... g6 $16) 15. Qb3 $1 $18 {[%emt 0:05:22] Hoping for Rbc1.} h5 $2 {[%emt 0:06:43]} (15... f6 16. Rbc1 Qd4) 16. Rbc1 {[%emt 0:03:34][%cal Bb1c1,Bc1c7,Bc7c8][%mdl 32]} h4 {[%emt 0:07:49][%cal Bh5h4,Bh4h3][%mdl 32]} 17. Bb5 {[%emt 0:04:17] White threatens Bxd7+ and mate.} Qf5 {[%emt 0:00:26]} 18. Rc7 {[%emt 0:00:11] aiming for Rxd7.} h3 {[%emt 0:05:16]} 19. Qc4 {[%emt 0:18:35]} Rh4 {[%emt 0:06:04]} 20. Qxh4 {[%emt 0:01:13]} (20. Rxd7 $142 Qxd7 21. Bxd7+ Rxd7 22. Qxh4) 20... Qxd5 {[%emt 0:00:17] [#]} 21. Bc6 $1 {[%emt 0:01:49][%mdl 512]} Qxd2 {[%emt 0:01:47]} (21... Qxc6 22. Rxc6) 22. Bxd7+ {[%emt 0:00:10]} Rxd7 {[%emt 0:00:15]} 23. Rc8+ {[%emt 0:00:05] Black did not feel at home in the position after the opening.   Weighted Error Value: White=0.12 (very precise) /Black=1.59.  Mistake:       	---       	Black=2      Inaccurate:     	White=1     	Black=1      OK:         	White=1     	Black=2      Best:        	White=2     	---} 1-0

[Event "Baku Open 2024"]
[Site "Baku"]
[Date "2024.07.01"]
[Round "3.26"]
[White "Zhalmakhanov, Ramazan"]
[Black "Kairbekova, Amina"]
[Result "1/2-1/2"]
[ECO "A05"]
[WhiteElo "2505"]
[BlackElo "2244"]
[Annotator "TA"]
[PlyCount "108"]
[EventDate "2024.06.29"]
[EventType "swiss"]
[EventCountry "AZE"]
[SourceTitle "playchess.com"]
[Source "ChessBase"]
[SourceQuality "1"]
[TimeControl "5400+30"]

{[%evp 11,108,12,39,-37,52,47,76,59,57,76,65,47,43,49,92,83,151,119,111,103,113,108,123,112,188,58,82,74,83,87,98,75,122,80,81,64,83,41,33,39,23,90,116,110,106,114,130,32,33,41,45,15,20,0,0,-26,-16,-18,38,29,325,0,316,316,307,290,1537,437,398,0,0,0,0,0,0,0,0,0,0,0,0,0,0,0,0,0,0,0,0,0,0,0,0,0,0,0,0,0,0]} 1. Nf3 {[%emt 0:04:18]} Nf6 {[%emt 0:00:22]} 2. b3 {[%emt 0:00:52]} g6 {[%emt 0:00:40]} 3. Bb2 {[%emt 0:00:07]} d5 {[%emt 0:02:05]} 4. c4 {[%emt 0:03:16]} Bg7 {[%emt 0:03:07]} 5. g3 {[%emt 0:05:01]} O-O {[%emt 0:00:14]} 6. Bg2 {[%emt 0:00:06]} c5 {[%emt 0:01:04]} 7. O-O {[%emt 0:09:11]} (7. cxd5 $14 Qxd5 8. Nc3) 7... Re8 {[%emt 0:05:33]} (7... d4 $15) 8. cxd5 $14 {[%emt 0:04:47]} Nxd5 {[%emt 0:05:25]} 9. Bxg7 {[%emt 0:02:58] White is better.} Kxg7 {[%emt 0:00:05]} 10. d4 {[%emt 0:00:48]} cxd4 {[%emt 0:04:21]} 11. Nxd4 {[%emt 0:01:14]} Nf6 {[%emt 1:13:04]} 12. Na3 {[%emt 0:08:06]} Qa5 {[%emt 0:00:00]} 13. Nc4 {[%emt 0:01:18]} Qh5 {[%emt 0:00:00]} ({Black should try} 13... Qc5) 14. e3 {[%emt 0:06:13]} Bg4 {[%emt 0:00:00]} 15. Qc2 {[%emt 0:05:00] White is more active.} Nc6 {[%emt 0:00:00]} 16. Nxc6 {[%emt 0:00:57]} bxc6 {[%emt 0:00:00]} 17. Bxc6 {[%emt 0:00:47][%cal Of2f3]} Rac8 {[%emt 0:00:00]} (17... Rad8 $16) 18. Bg2 {[%emt 0:12:50]} (18. Bxe8 $18 Bf3 19. h4) 18... Rc5 {[%emt 0:00:00]} 19. Qb2 {[%emt 0:08:22]} Kg8 {[%emt 0:00:00]} 20. Rfe1 {[%emt 0:05:15]} Rec8 {[%emt 0:00:00]} 21. Rac1 {[%emt 0:01:09]} Nd5 {[%emt 0:00:00]} ({Better is} 21... Be6) 22. Rc2 {[%emt 0:07:30]} Nb6 {[%emt 0:00:00]} 23. Rec1 {[%emt 0:07:58]} (23. Qd4 {feels hotter.} R8c7 24. Rec1 Be6 25. Bf1) 23... Be6 {[%emt 0:00:20]} 24. Na3 {[%emt 0:01:29]} Rxc2 $1 {[%emt 0:02:34]} 25. Rxc2 {[%emt 0:00:49]} Qd1+ {[%emt 0:03:16]} (25... Rxc2 $14 26. Qxc2 (26. Nxc2 Qd1+ 27. Bf1 Nc4 $11) 26... Qa5) 26. Bf1 $16 {[%emt 0:00:06]} Bh3 {[%emt 0:00:48][%csl Gh3][%cal Rd1f1] [#]} 27. Rxc8+ {[%emt 0:00:23]} Bxc8 {[%emt 0:00:06]} 28. Qc2 {[%emt 0:02:34]} Qd5 {[%emt 0:00:48]} 29. Bg2 {[%emt 0:00:48]} (29. Nb5 $16) 29... Qa5 $14 {[%emt 0:00:05]} 30. Qc1 $36 {[%emt 0:00:06][%mdl 2048] Black is under pressure.} Be6 {[%emt 0:00:38]} 31. e4 {[%emt 0:00:49]} Nd7 {[%emt 0:00:53]} 32. h4 {[%emt 0:00:47][%cal Bh2h4,Bh4h5][%mdl 32]} Nc5 {[%emt 0:00:22]} 33. h5 {[%emt 0:00:33]} Nd3 {[%emt 0:00:14]} 34. Qe3 {[%emt 0:00:08]} Qxa3 {[%emt 0:00:55]} (34... Nxf2 $11 35. b4 Ng4 (35... Qxh5 36. Kxf2 Qe5 37. Nc2 $16) 36. bxa5 Nxe3) 35. Qxd3 {[%emt 0:00:06]} Qxa2 $2 $11 {[%emt 0:00:29][%mdl 12288] Endgame. KQB-KQB} (35... gxh5 $11 36. Qd2 h4) 36. Qd8+ $18 {[%emt 0:01:14]} Kg7 {[%emt 0:00:07]} 37. h6+ $1 {[%emt 0:00:28]} (37. Qxe7 Qxb3 38. Kh2 Qa2 $11 (38... gxh5 39. Qg5+ Kh8 40. Qd8+ Kg7 41. Qd4+ Kg8 42. Qxa7 $14)) 37... Kxh6 {[%emt 0:00:21]} 38. Qf8+ {[%emt 0:00:06]} (38. Qxe7 Kg7 (38... Qxb3 39. Qf8+ Kg5 40. Kh2 $11) 39. b4 a5 40. bxa5 Qxa5 $11) 38... Kh5 $2 {[%emt 0:01:01]} (38... Kg5 39. f4+ (39. Qxe7+ Kh6 $18) 39... Kh5 (39... Kg4 $2 40. Qh6 $18)) 39. Bf3+ {[%emt 0:00:46]} (39. Qxe7 Qa1+ 40. Kh2 Kh6 $11) (39. Qg7 $142 Qb1+ 40. Kh2 Qc1 41. f4 h6 42. Qxf7 Qc6 43. Bf3+ (43. Qxe7 g5 44. f5 Bxf5 45. exf5 Qc2 46. f6 Kg6 47. f7 Qe2) 43... Bg4 44. Qxe7) 39... Kg5 {[%emt 0:00:08] [#]} 40. Qxe7+ $2 {[%emt 0:00:20]} (40. Bd1 $1 $18 {Intending f4+ and mate.} Bxb3 41. Qxe7+ Kh6 42. Qf8+ Kg5 43. Qc5+ Kh6 44. Qe3+ Kg7 45. Bxb3 (45. Qxb3 Qxb3 46. Bxb3 a6 $18) 45... Qb1+ 46. Kg2) 40... Kh6 $11 {[%emt 0:00:05] The position is equal.} 41. Qf8+ {[%emt 0:00:45]} Kg5 {[%emt 0:00:07]} 42. Qe7+ {[%emt 0:00:37]} Kh6 {[%emt 0:00:06]} 43. Qf8+ {[%emt 0:00:29]} Kg5 {[%emt 0:00:05]} 44. Qd8+ {[%emt 0:00:30]} Kh6 $1 {[%emt 0:00:07]} 45. Qf8+ {[%emt 0:00:30]} Kg5 {[%emt 0:00:06]} 46. Bg2 {[%emt 0:00:18] aiming for f4+.} Qxb3 {[%emt 0:02:21]} 47. Kh2 {[%emt 0:00:12]} h5 {[%emt 0:00:53]} 48. Qg7 {[%emt 0:00:36]} a5 {[%emt 0:00:45]} 49. e5 {[%emt 0:00:22]} a4 {[%emt 0:00:28]} 50. Qf6+ {[%emt 0:00:55]} Kh6 {[%emt 0:00:06] ...Kh7 would now be deadly.} 51. Qh8+ {[%emt 0:00:04]} Kg5 {[%emt 0:00:04]} 52. f3 {[%emt 0:00:55]} a3 {[%emt 0:00:35]} 53. Qf6+ {[%emt 0:00:30]} Kh6 {[%emt 0:00:05] Hoping for ...Kh7.} 54. Qh8+ {[%emt 0:00:35]} Kg5 {[%emt 0:00:05] Weighted Error Value: White=0.32/Black=0.22 (precise) .  Loses game:     	---       	Black=2      Mistake:       	White=3     	Black=7      Inaccurate:     	White=4     	Black=2      OK:         	White=18    	Black=10     Best:        	White=4     	Black=5      Strong:       	White=1     	Black=2} 1/2-1/2

[Event "Baku Open 2024"]
[Site "Baku"]
[Date "2024.07.01"]
[Round "3.27"]
[White "Babazada, Khazar"]
[Black "Orujov, Farid"]
[Result "1-0"]
[ECO "C44"]
[WhiteElo "2468"]
[BlackElo "2243"]
[Annotator "TA"]
[PlyCount "83"]
[EventDate "2024.06.29"]
[EventType "swiss"]
[EventCountry "AZE"]
[SourceTitle "playchess.com"]
[Source "ChessBase"]
[SourceQuality "1"]
[TimeControl "5400+30"]

{[%evp 9,83,0,13,1,4,4,24,17,31,0,16,18,22,-34,-41,-33,-28,-43,-9,-6,-10,-17,-5,-89,24,22,26,27,35,25,43,27,29,37,81,92,59,39,95,79,62,49,145,133,144,139,220,209,185,144,147,144,252,252,207,191,273,255,548,534,547,544,597,584,710,445,781,781,765,727,681,681,673,621,574,515]} 1. e4 {[%emt 0:00:26]} e5 {[%emt 0:00:28]} 2. Nf3 {[%emt 0:00:30]} Nf6 {[%emt 0:00:07]} 3. d3 {[%emt 0:00:02]} Nc6 {[%emt 0:00:52]} 4. g3 {[%emt 0:01:08]} d5 {[%emt 0:04:58]} 5. exd5 {[%emt 0:00:09]} Qxd5 {[%emt 0:01:41]} 6. Bg2 {[%emt 0:00:46]} Bg4 {[%emt 0:04:23][%cal Bc8g4,Bg4h5,Bh5g6][%mdl 32]} 7. h3 {[%emt 0:00:39]} Bh5 {[%emt 0:04:16]} 8. Nc3 {[%emt 0:02:56] White has an edge.} Qd7 {[%emt 0:06:00][%cal Oe5e4]} 9. g4 {[%emt 0:03:39]} Bg6 {[%emt 0:02:44]} 10. Be3 {[%emt 0:01:23]} Bb4 {[%emt 0:04:16]} 11. a3 {[%emt 0:03:16]} ({White should try} 11. O-O $11) 11... Bxc3+ $15 {[%emt 0:06:07]} 12. bxc3 {[%emt 0:00:01]} Nd5 {[%emt 0:06:53]} 13. Qd2 {[%emt 0:00:41]} e4 {[%emt 0:06:31]} 14. Nh4 {[%emt 0:01:02]} exd3 {[%emt 0:06:09] aiming for ...0-0-0.} 15. Nxg6 {[%emt 0:02:01]} (15. c4 {with more complications.} Nb6 16. Nxg6 hxg6 17. c5) 15... hxg6 {[%emt 0:42:35]} 16. cxd3 {[%emt 0:00:04]} (16. Qxd3 $11 {keeps the balance.} O-O-O 17. O-O-O Nxe3 18. Qxe3) 16... Nxe3 {[%emt 0:00:00]} (16... O-O-O $17 {White must now prevent ...Nxe3.} 17. Rd1 Nxe3 18. fxe3 f5 19. gxf5 gxf5) 17. Qxe3+ $11 {[%emt 0:01:23]} Kf8 {[%emt 0:00:00] [#] Threatens to win with ...Re8.} 18. O-O {[%emt 0:03:02]} Re8 {[%emt 0:00:00]} 19. Qc5+ {[%emt 0:01:32]} Qd6 $1 {[%emt 0:00:00]} 20. Qxd6+ {[%emt 0:01:51]} (20. Qb5 {is more complex.} Nd8 21. Rfe1 Re7 22. d4) 20... cxd6 {[%emt 0:00:00]} 21. Rab1 {[%emt 0:00:08]} Na5 {[%emt 0:00:00]} 22. Rfe1 {[%emt 0:01:32]} b6 {[%emt 0:00:00]} 23. Kh2 {[%emt 0:00:31]} Re7 {[%emt 0:00:00]} (23... g5 $1 $14) 24. Bd5 {[%emt 0:00:25]} g5 {[%emt 0:00:00]} 25. Kg3 {[%emt 0:00:16] White is more active.} Ke8 {[%emt 0:00:00] [#]} ({Better is} 25... Rc7 $14) 26. Rxe7+ $1 $16 {[%emt 0:00:19]} Kxe7 {[%emt 0:00:00][%mdl 4096] Endgame. KRB-KRN} 27. Re1+ {[%emt 0:00:05]} Kf8 {[%emt 0:00:00]} (27... Kf6 $16) 28. Re3 {[%emt 0:00:43]} Rh7 {[%emt 0:00:00]} 29. Rf3 {[%emt 0:01:39]} g6 {[%emt 0:00:00]} 30. Re3 {[%emt 0:00:01]} b5 {[%emt 0:00:00]} (30... Rg7 $16 {is a better defense.} 31. h4 gxh4+ 32. Kxh4 f5 33. gxf5 gxf5) 31. Re4 {[%emt 1:13:50]} f5 {[%emt 0:02:34]} 32. Rb4 {[%emt 0:00:00]} a6 {[%emt 0:01:46]} (32... Nb7 {might work better.} 33. Rxb5 Nc5) 33. a4 $18 {[%emt 0:00:00]} Rc7 $2 {[%emt 0:03:37]} (33... bxa4 {was called for.} 34. Rxa4 Nb7) 34. axb5 {[%emt 0:00:00] White is clearly winning.} axb5 {[%emt 0:00:02]} 35. Rxb5 {[%emt 0:00:00]} Nc6 {[%emt 0:01:09]} 36. Bxc6 {[%emt 0:00:00] Hoping for Rb8+.} Rxc6 {[%emt 0:00:01] KR-KR} 37. c4 {[%emt 0:00:00]} Ra6 {[%emt 0:01:19]} (37... fxg4 $142 38. Kxg4 Kg7 39. Kxg5 Kf7) 38. gxf5 {[%emt 0:00:00]} Kf7 {[%emt 0:00:25]} 39. fxg6+ {[%emt 0:00:00]} Kxg6 {[%emt 0:00:20]} 40. Kg4 {[%emt 0:00:00]} Ra3 {[%emt 0:00:29]} 41. Rd5 {[%emt 0:00:00]} Ra6 {[%emt 0:00:04]} 42. Rxg5+ {[%emt 0:00:00] Weighted Error Value: White=0.20 (precise) /Black=0.36.  Mistake:       	White=2     	Black=8      Inaccurate:     	White=1     	Black=2      OK:         	White=8     	Black=5      Best:        	White=3     	Black=2      Strong:       	White=1     	Black=1} 1-0